fUST/lending_fUST_20251124
["ID","MTS","AMOUNT","RATE_DAILY","PERIOD"]
[394733191,1763920147185,-311.11111114,6.548e-05,2]
[394733192,1763920147205,-186.53967852,6.581e-05,2]
[394733193,1763920147224,-1383.3547037,7.387e-05,2]
[394733194,1763920147245,-250.0,8.166e-05,2]
[394733195,1763920147264,-300.0,8.261e-05,2]
[394733196,1763920147290,-32891.9072858,8.262e-05,2]
[394733197,1763920147310,-299.9847227,8.323e-05,2]
[394733198,1763920147332,-8837.4138909,8.323e-05,2]
[394733199,1763920147356,-300.0,8.462e-05,2]
[394733200,1763920147376,-300.0,8.462e-05,2]
[394733201,1763920147397,-300.0,8.462e-05,2]
[394733202,1763920147417,-300.0,8.462e-05,2]
[394733203,1763920147439,-300.0,8.462e-05,2]
[394733204,1763920147458,-300.0,8.462e-05,2]
[394733205,1763920147478,-300.0,8.462e-05,2]
[394733206,1763920147499,-300.0,8.462e-05,2]
[394733207,1763920147520,-300.0,8.462e-05,2]
[394733208,1763920147541,-300.0,8.462e-05,2]
[394733209,1763920147561,-300.0,8.462e-05,2]
[394733210,1763920147581,-300.0,8.462e-05,2]
[394733211,1763920147601,-300.0,8.462e-05,2]
[394733212,1763920147624,-300.0,8.462e-05,2]
[394733213,1763920147645,-300.0,8.462e-05,2]
[394733214,1763920147666,-600.0,8.462e-05,2]
[394733215,1763920147685,-227.76923575,8.462e-05,2]
[394733216,1763920147705,-220.11682065,8.581e-05,2]
[394733217,1763920147728,-353.29325365,8.688e-05,2]
[394733218,1763920147748,-160.0,8.688e-05,2]
[394733219,1763920147769,-279.09623002,8.691e-05,2]
[394733220,1763920147789,-3913.41056826,8.761e-05,2]
[394733221,1763920147808,-169.671186,8.927e-05,2]
[394733222,1763920147827,-299.9847227,9.195e-05,2]
[394733223,1763920147848,-720.0,9.308e-05,2]
[394733224,1763920147867,-8837.4138909,9.31e-05,2]
[394733225,1763920147888,-16826.0,0.0001,2]
[394733226,1763920147910,-187.78006525,0.0001,2]
[394733227,1763920147930,-299.9847227,0.00010067,2]
[394733228,1763920147953,-864.0,0.00010239,2]
[394733229,1763920147977,-500.0,0.00010297,2]
[394733230,1763920147997,-500.0,0.00010297,2]
[394733231,1763920148018,-500.0,0.00010297,2]
[394733232,1763920148040,-500.0,0.00010297,2]
[394733233,1763920148061,-500.0,0.00010297,2]
[394733234,1763920148083,-335.1242889,0.00010297,2]
[394733235,1763920148103,-8837.4138909,0.00010298,2]
[394733236,1763920148125,-194.72792766,0.00010548,2]
[394733237,1763920148148,-253.69396278,0.00010581,2]
[394733238,1763920148169,-989.0,0.00010864,2]
[394733239,1763920148189,-630.0,0.00010864,2]
[394733240,1763920148210,-2152.0,0.00010864,2]
[394733241,1763920148230,-414.0,0.00010864,2]
[394733242,1763920148253,-369.72257758,0.00010864,2]
[394733243,1763920148276,-299.9847227,0.00010939,2]
[394733244,1763920148297,-500.0,0.00010958,2]
[394733245,1763920148319,-999.0,0.00010959,2]
[394733246,1763920148341,-500.0,0.00010959,2]
[394733247,1763920148366,-500.0,0.00010959,2]
[394733248,1763920148387,-500.0,0.00010959,2]
[394733249,1763920148408,-500.0,0.00010959,2]
[394733250,1763920148431,-375.01146695,0.00010959,2]
[394733251,1763920148452,-500.0,0.00010959,2]
[394733252,1763920148473,-500.0,0.00010959,2]
[394733253,1763920148493,-500.0,0.00010959,2]
[394733254,1763920148514,-500.0,0.00010959,2]
[394733255,1763920148534,-500.0,0.00010959,2]
[394733256,1763920148555,-500.0,0.00010959,2]
[394733257,1763920148577,-500.0,0.00010959,2]
[394733258,1763920148597,-500.0,0.00010959,2]
[394733259,1763920148619,-500.0,0.00010959,2]
[394733260,1763920148640,-500.0,0.00010959,2]
[394733261,1763920148660,-500.0,0.00010959,2]
[394733262,1763920148680,-500.0,0.00010959,2]
[394733263,1763920148701,-500.0,0.00010959,2]
[394733264,1763920148721,-550.0,0.00010959,2]
[394733265,1763920148741,-500.0,0.00010959,2]
[394733266,1763920148762,-500.0,0.00010959,2]
[394733267,1763920148783,-500.0,0.00010959,2]
[394733268,1763920148806,-201.93286099,0.00011096,2]
[394733269,1763920148826,-169.671186,0.00011158,2]
[394733270,1763920148849,-1000.0,0.00011263,2]
[394733271,1763920148871,-8837.4138909,0.00011285,2]
[394733272,1763920148892,-209.40437684,0.00011644,2]
[394733273,1763920148911,-500.0,0.00012054,2]
[394733274,1763920148931,-217.15233878,0.00012192,2]
[394733275,1763920148954,-1000.0,0.00012389,2]
[394733276,1763920148975,-244.0,0.00012389,2]
[394733277,1763920148998,-287.27110492,0.00012581,2]
[394733278,1763920149022,-225.18697532,0.0001274,2]
[394733279,1763920149044,-6157.37312693,0.000129,2]
[394733280,1763920149066,-5667.62706066,0.000129,2]
[394733281,1763920149688,-489.74606622,0.000129,2]
[394733282,1763920158275,-500.0,0.0001315,2]
[394733283,1763920158296,-500.0,0.00013282,2]
[394733284,1763920158320,-186.76069943,0.00013288,2]
[394733285,1763920158342,-169.671186,0.0001339,2]
[394733286,1763920158366,-500.0,0.00013397,2]
[394733287,1763920158387,-500.0,0.00013471,2]
[394733288,1763920158410,-574.86842506,0.00013628,2]
[394733289,1763920182461,250.0,9.167e-05,2]
[394733290,1763920210209,2746.0,0.0001,2]
[394733291,1763920219460,500.0,0.00010958,2]
[394733292,1763920219714,500.0,0.00012054,2]
[394733335,1763920232083,-500.0,0.0001315,2]
[394733336,1763920232091,-119.84912104,0.00013698,2]
[394733351,1763920232233,-380.15087896,0.00013698,2]
[394733352,1763920232242,-500.0,0.00013698,2]
[394733354,1763920232251,-500.0,0.00013698,2]
[394733356,1763920232260,-500.0,0.00013698,2]
[394733358,1763920232269,-500.0,0.00013698,2]
[394733360,1763920232279,-500.0,0.00013698,2]
[394733362,1763920232290,-500.0,0.00013698,2]
[394733365,1763920232300,-500.0,0.00013698,2]
[394733366,1763920232309,-71.00488989,0.00013698,2]
[394733442,1763920237833,-428.99511011,0.00013698,2]
[394733443,1763920237843,-500.0,0.00013698,2]
[394733444,1763920237855,-500.0,0.00013698,2]
[394733445,1763920237865,-500.0,0.00013698,2]
[394733446,1763920237875,-50000.0,0.00013698,2]
[394733447,1763920237885,-715.724522,0.00013699,2]
[394733448,1763920237894,-1399.103303,0.00013699,2]
[394733449,1763920237904,-1000.0,0.00013699,2]
[394733450,1763920237914,-313.6224,0.00013699,2]
[394733451,1763920237923,-989.0,0.00013864,2]
[394733452,1763920237933,-630.0,0.00013864,2]
[394733453,1763920237943,-2152.0,0.00013864,2]
[394733454,1763920237953,-414.0,0.00013864,2]
[394733455,1763920237963,-300.0,0.00013971,2]
[394733456,1763920237972,-300.0,0.00013971,2]
[394733457,1763920237982,-300.0,0.00013971,2]
[394733458,1763920237995,-300.0,0.00013971,2]
[394733459,1763920238005,-300.0,0.00013971,2]
[394733460,1763920238015,-300.0,0.00013971,2]
[394733461,1763920238025,-300.0,0.00013971,2]
[394733462,1763920238035,-300.0,0.00013971,2]
[394733463,1763920238044,-300.0,0.00013971,2]
[394733464,1763920238054,-300.0,0.00013971,2]
[394733465,1763920238063,-300.0,0.00013971,2]
[394733466,1763920238074,-300.0,0.00013971,2]
[394733467,1763920238084,-300.0,0.00013971,2]
[394733468,1763920238094,-300.0,0.00013971,2]
[394733469,1763920238103,-300.0,0.00013971,2]
[394733470,1763920238113,-600.0,0.00013971,2]
[394733471,1763920238122,-500.0,0.00014246,2]
[394733472,1763920238132,-500.0,0.00014259,2]
[394733473,1763920238141,-500.0,0.00014414,2]
[394733474,1763920238151,-320.84824705,0.00014581,2]
[394733475,1763920238160,-279.09623002,0.00014657,2]
[394733476,1763920238171,-225.97898198,0.000149,2]
[394733477,1763920238181,-225.97898197,0.000149,2]
[394733478,1763920238191,-185.49421885,0.00014968,2]
[394733479,1763920238201,-500.0,0.0001499,2]
[394733480,1763920238211,-500.0,0.00015027,2]
[394733481,1763920238221,-500.0,0.00015027,2]
[394733482,1763920238230,-500.0,0.00015027,2]
[394733483,1763920238239,-500.0,0.00015027,2]
[394733484,1763920238248,-500.0,0.00015027,2]
[394733485,1763920238258,-153.5150423,0.00015043,2]
[394733486,1763920238267,-4492.0,0.00015067,2]
[394733487,1763920238276,-180.88216335,0.00015068,2]
[394733488,1763920238285,-356.065174,0.00015068,2]
[394733489,1763920238294,-800.0,0.00015068,2]
[394733490,1763920238303,-500.0,0.00015119,2]
[394733491,1763920238313,-500.0,0.00015119,2]
[394733492,1763920238322,-500.0,0.00015119,2]
[394733493,1763920238333,-500.0,0.00015119,2]
[394733494,1763920238342,-500.0,0.00015119,2]
[394733495,1763920238352,-500.0,0.00015119,2]
[394733496,1763920238361,-500.0,0.00015119,2]
[394733497,1763920238371,-597.50802686,0.00015119,2]
[394733498,1763920238384,-500.0,0.00015119,2]
[394733499,1763920238393,-500.0,0.00015119,2]
[394733500,1763920238403,-484.58700224,0.00015119,2]
[394733501,1763920238412,-500.0,0.00015119,2]
[394733502,1763920238422,-500.0,0.00015119,2]
[394733503,1763920238431,-500.0,0.00015119,2]
[394733504,1763920238443,-500.0,0.00015119,2]
[394733505,1763920238454,-500.0,0.00015119,2]
[394733506,1763920238463,-15082.96057529,0.0001512,2]
[394733507,1763920238476,-322.46275452,0.0001512,2]
[394733508,1763920238488,-836.55525642,0.0001512,2]
[394733509,1763920238500,-703.52979223,0.0001512,2]
[394733510,1763920238511,-474.65,0.0001512,2]
[394733511,1763920238535,-2909.84666063,0.0001512,2]
[394733512,1763920238545,-4492.0,0.00015169,2]
[394733513,1763920238554,-4492.0,0.00015244,2]
[394733514,1763920238564,-42.07689744,0.00015292,2]
[394733665,1763920243801,-257.272,0.00013698,2]
[394733670,1763920243894,-96.02125365,0.00013698,2]
[394733671,1763920243903,-594.27310256,0.00015292,2]
[394733672,1763920243913,-4492.0,0.00015293,2]
[394733673,1763920243922,-500.0,0.00015342,2]
[394733674,1763920243931,-720.0,0.00015368,2]
[394733675,1763920243941,-2911.93629608,0.00015495,2]
[394733718,1763920246059,-1580.06370392,0.00015495,2]
[394733719,1763920246068,-2327.13629607,0.00015513,2]
[394733982,1763920251973,150.0,0.00011557,2]
[394733988,1763920272645,414.0,0.00011579,2]
[394733989,1763920295490,7785.0668842,8.223e-05,2]
[394733990,1763920579275,5940.82,0.0002,30]
[394734194,1763921235125,-167.24041225,7.252e-05,2]
[394734195,1763921235147,-142.67744182,7.325e-05,2]
[394734196,1763921239322,-24.56297043,7.325e-05,2]
[394734197,1763921239343,-169.0,7.362e-05,2]
[394734198,1763921239363,-2334.84497779,7.363e-05,2]
[394734199,1763921346092,-2538.49958775,7.289e-05,2]
[394734200,1763921346113,-163.89560401,7.326e-05,2]
[394734201,1763921346133,-25750.68815109,7.363e-05,2]
[394734202,1763921350137,-999.05605072,7.363e-05,2]
[394734203,1763921350160,-300.0,7.509e-05,2]
[394734204,1763921350198,-300.0,7.509e-05,2]
[394734205,1763921350243,-300.0,7.509e-05,2]
[394734206,1763921350290,-300.0,7.509e-05,2]
[394734207,1763921350335,-300.0,7.509e-05,2]
[394734208,1763921350377,-300.0,7.509e-05,2]
[394734209,1763921350398,-300.0,7.509e-05,2]
[394734210,1763921350424,-300.0,7.509e-05,2]
[394734211,1763921350447,-300.0,7.509e-05,2]
[394734212,1763921350470,-300.0,7.509e-05,2]
[394734213,1763921350492,-300.0,7.509e-05,2]
[394734214,1763921350514,-300.0,7.509e-05,2]
[394734215,1763921350537,-300.0,7.509e-05,2]
[394734216,1763921350559,-300.0,7.509e-05,2]
[394734217,1763921350582,-300.0,7.509e-05,2]
[394734218,1763921350603,-600.0,7.658e-05,2]
[394734219,1763921350624,-720.0,8.424e-05,2]
[394734220,1763921350644,-353.29325365,8.546e-05,2]
[394734221,1763921350663,-500.0,8.743e-05,2]
[394734222,1763921350685,-864.0,9.266e-05,2]
[394734223,1763921350705,-1120.91065104,9.29e-05,2]
[394734224,1763921350725,-193.39681273,9.326e-05,2]
[394734225,1763921350748,-271.83271141,9.953e-05,2]
[394734226,1763921350777,-187.78006525,0.0001,2]
[394734227,1763921350801,-1000.0,0.00010193,2]
[394734228,1763921350829,-194.72792766,0.00010548,2]
[394734229,1763921351070,-500.0,0.00010958,2]
[394734230,1763921351098,-201.93286099,0.00011096,2]
[394734231,1763921351124,-1000.0,0.00011212,2]
[394734232,1763921351151,-244.0,0.00011212,2]
[394734233,1763921351176,-222.89802145,0.00011326,2]
[394734234,1763921351202,-2152.0,0.00011579,2]
[394734235,1763921351227,-989.0,0.00011579,2]
[394734236,1763921351246,-588.19977003,0.00011579,2]
[394734237,1763921360288,-250.0,9.631e-05,2]
[394734238,1763921360308,-41.80022997,0.00011579,2]
[394734239,1763921360327,-414.0,0.00011579,2]
[394734240,1763921360349,-169.24759855,0.00011644,2]
[394734241,1763921360368,-500.0,0.00012054,2]
[394734242,1763921360390,-1000.0,0.00012334,2]
[394734243,1763921360411,-492.0,0.00012334,2]
[394734244,1763921360431,-4618.02984516,0.000129,2]
[394734245,1763921360451,-3909.50096674,0.000129,2]
[394734246,1763921371072,-708.52887842,0.000129,2]
[394734247,1763921371095,-371.71756907,0.0001315,2]
[394734376,1763921438860,-128.28243093,0.0001315,2]
[394734377,1763921438870,-2040.71435713,0.00013326,2]
[394734771,1763921444474,-1166.36,0.00013326,2]
[394734952,1763921446343,-34.43531712,0.00013326,2]
[394738059,1763921954252,-150.6705203,9.281e-05,2]
[394738060,1763921966190,150.6705203,9.281e-05,2]
[394738065,1763922061637,3452.03042362,9.275e-05,2]
[394738066,1763922092344,150.6705203,9.281e-05,2]
[394738067,1763922116006,150.6705203,9.281e-05,2]
[394738068,1763922124173,150.6705203,9.281e-05,2]
[394738069,1763922132857,150.6705203,9.281e-05,2]
[394738070,1763922140826,175.0386456,9.328e-05,2]
[394738071,1763922148798,175.0386456,9.328e-05,2]
[394738072,1763922156555,175.0386456,9.328e-05,2]
[394738073,1763922164601,175.0386456,9.328e-05,2]
[394738074,1763922172382,175.0386456,9.328e-05,2]
[394738075,1763922181001,175.0386456,9.328e-05,2]
[394738076,1763922188796,175.0386456,9.328e-05,2]
[394738077,1763922196740,175.0386456,9.328e-05,2]
[394738078,1763922204464,175.0386456,9.328e-05,2]
[394738079,1763922212502,175.0386456,9.328e-05,2]
[394738080,1763922220619,175.0386456,9.328e-05,2]
[394738081,1763922229145,175.0386456,9.328e-05,2]
[394738082,1763922236932,175.0386456,9.328e-05,2]
[394738083,1763922245040,175.0386456,9.328e-05,2]
[394738084,1763922252800,175.0386456,9.328e-05,2]
[394738085,1763922260988,175.0386456,9.328e-05,2]
[394738090,1763922337432,-175.0386456,9.548e-05,2]
[394738091,1763922337457,-34.24953351,9.644e-05,2]
[394738092,1763922416076,-140.78911209,9.644e-05,2]
[394738093,1763922416099,-27.40397617,9.742e-05,2]
[394738094,1763922428068,-147.63466943,9.742e-05,2]
[394738095,1763922428088,-336.25579842,0.00010061,2]
[394738096,1763922428110,-87.15311201,0.00010913,2]
[394738097,1763922429086,-72.84688799,0.00010913,2]
[394738098,1763922429107,-199.83516812,0.00010958,2]
[394738099,1763922434106,-300.16483188,0.00010958,2]
[394738100,1763922434412,-19.48262347,0.00011027,2]
[394738101,1763922571084,-243.56670733,0.00010808,2]
[394738102,1763922571105,-243.56670733,0.00010917,2]
[394738103,1763922571127,-243.56670733,0.00011027,2]
[394738104,1763922571148,-206.54560181,0.00011742,2]
[394738105,1763922571172,-6592.58532277,0.00011819,2]
[394738106,1763922571196,-300.0,0.00011915,2]
[394738107,1763922571215,-50000.0,0.00011916,2]
[394738108,1763922571238,-500.0,0.00011917,2]
[394738109,1763922571265,-500.0,0.00011917,2]
[394738110,1763922571286,-500.0,0.00011917,2]
[394738111,1763922571305,-304.11956246,0.00011917,2]
[394738112,1763922571330,-500.0,0.00011917,2]
[394738113,1763922571352,-500.0,0.00011917,2]
[394738114,1763922571377,-500.0,0.00011917,2]
[394738115,1763922571397,-500.0,0.00011917,2]
[394738116,1763922571417,-500.0,0.00011917,2]
[394738117,1763922571441,-500.0,0.00011917,2]
[394738118,1763922571461,-500.0,0.00011917,2]
[394738119,1763922571485,-209.23834521,0.00011917,2]
[394738120,1763922571504,-500.0,0.00011917,2]
[394738121,1763922571533,-500.0,0.00011917,2]
[394738122,1763922571559,-500.0,0.00011917,2]
[394738123,1763922571581,-500.0,0.00011917,2]
[394738124,1763922571604,-500.0,0.00011917,2]
[394738125,1763922571625,-511.34900552,0.00011917,2]
[394738126,1763922571652,-500.0,0.00011917,2]
[394738127,1763922571676,-500.0,0.00011917,2]
[394738128,1763922571699,-500.0,0.00011917,2]
[394738129,1763922571723,-500.0,0.00011917,2]
[394738130,1763922571746,-500.0,0.00011917,2]
[394738131,1763922571773,-500.0,0.00011917,2]
[394738132,1763922571796,-500.0,0.00011917,2]
[394738133,1763922571822,-500.0,0.00011917,2]
[394738134,1763922571845,-500.0,0.00011917,2]
[394738135,1763922571868,-500.0,0.00011917,2]
[394738136,1763922571887,-497.75500168,0.00011917,2]
[394738137,1763922571939,-2.24499832,0.00011917,2]
[394738138,1763922571960,-500.0,0.00011917,2]
[394738139,1763922571984,-500.0,0.00011917,2]
[394738140,1763922572008,-500.0,0.00011917,2]
[394738141,1763922572029,-500.0,0.00011917,2]
[394738142,1763922572054,-500.0,0.00011917,2]
[394738143,1763922572246,-500.0,0.00011917,2]
[394738144,1763922572274,-500.0,0.00011917,2]
[394738145,1763922572302,-500.0,0.00011917,2]
[394738146,1763922572326,-500.0,0.00011917,2]
[394738147,1763922572351,-500.0,0.00011917,2]
[394738148,1763922572376,-500.0,0.00011917,2]
[394738149,1763922572399,-500.0,0.00011917,2]
[394738150,1763922572423,-500.0,0.00011917,2]
[394738151,1763922572446,-500.0,0.00011917,2]
[394738152,1763922572468,-500.0,0.00011917,2]
[394738153,1763922572491,-500.0,0.00011917,2]
[394738154,1763922572514,-500.0,0.00011917,2]
[394738155,1763922572536,-500.0,0.00011917,2]
[394738156,1763922572558,-500.0,0.00011917,2]
[394738157,1763922572582,-500.0,0.00011917,2]
[394738158,1763922572604,-500.0,0.00011917,2]
[394738159,1763922572626,-500.0,0.00011917,2]
[394738160,1763922572649,-500.0,0.00011917,2]
[394738161,1763922572672,-500.0,0.00011917,2]
[394738162,1763922572695,-500.0,0.00011917,2]
[394738163,1763922572719,-500.0,0.00011917,2]
[394738164,1763922572744,-500.0,0.00011917,2]
[394738165,1763922572768,-183.14510689,0.00011917,2]
[394738166,1763922572787,-1200.0,0.00011917,2]
[394738167,1763922572806,-1200.0,0.00011918,2]
[394738168,1763922572826,-500.0,0.00011921,2]
[394738169,1763922572845,-385.60972532,0.00011921,2]
[394738170,1763922572865,-500.0,0.00011921,2]
[394738171,1763922572884,-500.0,0.00011921,2]
[394738172,1763922572903,-500.0,0.00011921,2]
[394738173,1763922572924,-500.0,0.00011921,2]
[394738174,1763922572946,-176.96259083,0.00011921,2]
[394738175,1763922572967,-500.0,0.00011921,2]
[394738176,1763922572990,-315.65889509,0.00011921,2]
[394738177,1763922573011,-500.0,0.00011921,2]
[394738178,1763922573032,-500.0,0.00011921,2]
[394738179,1763922573051,-500.0,0.00011921,2]
[394738180,1763922573071,-500.0,0.00011921,2]
[394738181,1763922573093,-500.0,0.00011921,2]
[394738182,1763922573113,-500.0,0.00011921,2]
[394738183,1763922573133,-500.0,0.00011921,2]
[394738184,1763922573154,-236.53742186,0.00011921,2]
[394738185,1763922573179,-500.0,0.00011921,2]
[394738186,1763922573201,-500.0,0.00011921,2]
[394738187,1763922573224,-500.0,0.00011921,2]
[394738188,1763922573246,-522.85927026,0.00011921,2]
[394738189,1763922573268,-500.0,0.00011921,2]
[394738190,1763922573288,-500.0,0.00011921,2]
[394738191,1763922573307,-500.0,0.00011921,2]
[394738192,1763922573328,-500.0,0.00011921,2]
[394738193,1763922573348,-500.0,0.00011921,2]
[394738194,1763922573368,-500.0,0.00011921,2]
[394738195,1763922573388,-151.0,0.00011921,2]
[394738196,1763922573406,-630.0,0.00011922,2]
[394738197,1763922573426,-989.0,0.00011922,2]
[394738198,1763922573446,-2152.0,0.00011922,2]
[394738199,1763922573466,-414.0,0.00011922,2]
[394738200,1763922573489,-500.0,0.00012054,2]
[394738201,1763922573512,-300.0,0.00012159,2]
[394738202,1763922573534,-300.0,0.00012159,2]
[394738203,1763922573555,-300.0,0.00012159,2]
[394738204,1763922573576,-300.0,0.00012159,2]
[394738205,1763922573597,-300.0,0.00012159,2]
[394738206,1763922573617,-300.0,0.00012159,2]
[394738207,1763922573642,-300.0,0.00012159,2]
[394738208,1763922573663,-300.0,0.00012159,2]
[394738209,1763922573685,-300.0,0.00012159,2]
[394738210,1763922573706,-300.0,0.00012159,2]
[394738211,1763922573728,-300.0,0.00012159,2]
[394738212,1763922573749,-300.0,0.00012159,2]
[394738213,1763922573769,-300.0,0.00012159,2]
[394738214,1763922573792,-300.0,0.00012159,2]
[394738215,1763922573815,-300.0,0.00012159,2]
[394738216,1763922573836,-353.29325365,0.00012368,2]
[394738217,1763922573857,-600.0,0.00012401,2]
[394738218,1763922573878,-300.0,0.00013082,2]
[394738219,1763922573899,-1200.0,0.00013083,2]
[394738220,1763922573919,-500.0,0.0001315,2]
[394738221,1763922573942,-187.78006525,0.00013218,2]
[394738222,1763922573964,-500.0,0.00013267,2]
[394738223,1763922574273,160.0,0.00011819,2]
[394738224,1763922574523,243.56670733,0.000107,2]
[394738227,1763922597322,500.0,0.00013254,2]
[394738228,1763922597611,303.04461052,0.00010061,2]
[394738230,1763922620279,500.0,0.00013254,2]
[394738231,1763922624904,187.78006525,0.00011913,2]
[394738232,1763922625538,194.72792766,0.00012461,2]
[394738233,1763922626150,201.93286099,0.00013009,2]
[394738255,1763922632154,-500.0,0.00013388,2]
[394738256,1763922632163,-500.0,0.00013523,2]
[394738257,1763922632173,-209.40437684,0.00013557,2]
[394738258,1763922632182,-167.40696066,0.00013582,2]
[394738259,1763922632191,-521.45280781,0.00013698,2]
[394738260,1763922632201,-399.68513627,0.00013699,2]
[394738281,1763922636578,67211.23842325,0.00011819,2]
[394738318,1763922638171,-39451.05424903,0.00011819,2]
[394738320,1763922638180,-26.15108313,0.00013562,2]
[394738355,1763922638691,-35.51638393,0.00013562,2]
[394738900,1763922645501,-6037.51971269,0.00013426,2]
[394738902,1763922645510,-8378.28324093,0.00013562,2]
[394738904,1763922645522,-396.205,0.00013562,2]
[394738906,1763922645533,-447.54,0.00013562,2]
[394738981,1763922646360,-1036.40916274,0.00013562,2]
[394738983,1763922646370,-1000.19603373,0.00013699,2]
[394738984,1763922646379,-151.0,0.00013699,2]
[394738986,1763922646389,-210.39480353,0.00013699,2]
[394738988,1763922646405,-744.00549447,0.00013699,2]
[394738990,1763922646415,-151.0,0.00013699,2]
[394738992,1763922646425,-152.098028,0.00013699,2]
[394738994,1763922646435,-151.0,0.00013699,2]
[394738996,1763922646445,-151.0,0.00013699,2]
[394738997,1763922646455,-151.0,0.00013699,2]
[394738999,1763922646465,-156.167948,0.00013699,2]
[394739001,1763922646475,-189.02291,0.00013699,2]
[394739003,1763922646484,-151.0,0.00013699,2]
[394739005,1763922646493,-151.0,0.00013699,2]
[394739007,1763922646503,-151.0,0.00013699,2]
[394739009,1763922646512,-151.0,0.00013699,2]
[394739011,1763922646521,-151.0,0.00013699,2]
[394739012,1763922646531,-156.73149,0.00013699,2]
[394739015,1763922646540,-151.0,0.00013699,2]
[394739018,1763922646550,-151.0,0.00013699,2]
[394739021,1763922646559,-229.737015,0.00013699,2]
[394739024,1763922646569,-151.0,0.00013699,2]
[394739027,1763922646578,-151.0,0.00013699,2]
[394739030,1763922646588,-164.069371,0.00013699,2]
[394739032,1763922646597,-152.849577,0.00013699,2]
[394739034,1763922646607,-163.710464,0.00013699,2]
[394739036,1763922646615,-163.710464,0.00013699,2]
[394739038,1763922646624,-163.710464,0.00013699,2]
[394739040,1763922646634,-163.710464,0.00013699,2]
[394739042,1763922646643,-151.0,0.00013699,2]
[394739044,1763922646654,-151.0,0.00013699,2]
[394739046,1763922646664,-151.0,0.00013699,2]
[394739047,1763922646673,-151.0,0.00013699,2]
[394739049,1763922646682,-151.0,0.00013699,2]
[394739051,1763922646691,-151.0,0.00013699,2]
[394739053,1763922646701,-151.0,0.00013699,2]
[394739055,1763922646710,-151.0,0.00013699,2]
[394739057,1763922646718,-151.509772,0.00013699,2]
[394739059,1763922646728,-151.0,0.00013699,2]
[394739061,1763922646737,-151.0,0.00013699,2]
[394739063,1763922646746,-683.620143,0.00013699,2]
[394739065,1763922646756,-683.620143,0.00013699,2]
[394739067,1763922646765,-683.620143,0.00013699,2]
[394739068,1763922646775,-683.620143,0.00013699,2]
[394739070,1763922646784,-151.0,0.00013699,2]
[394739072,1763922646793,-276.843744,0.00013699,2]
[394739074,1763922646803,-163.710464,0.00013699,2]
[394739076,1763922646813,-163.710464,0.00013699,2]
[394739078,1763922646823,-163.710464,0.00013699,2]
[394739080,1763922646832,-163.710464,0.00013699,2]
[394739082,1763922646842,-151.0,0.00013699,2]
[394739083,1763922646852,-151.0,0.00013699,2]
[394739085,1763922646861,-151.0,0.00013699,2]
[394739087,1763922646870,-151.0,0.00013699,2]
[394739089,1763922646879,-151.0,0.00013699,2]
[394739091,1763922646888,-151.0,0.00013699,2]
[394739093,1763922646897,-151.0,0.00013699,2]
[394739095,1763922646908,-196.87363,0.00013699,2]
[394739097,1763922646917,-151.0,0.00013699,2]
[394739099,1763922646926,-151.0,0.00013699,2]
[394739100,1763922646935,-280.36694301,0.00013699,2]
[394739103,1763922646947,-403.25319999,0.00013699,2]
[394739105,1763922646956,-683.620143,0.00013699,2]
[394739107,1763922646970,-683.620143,0.00013699,2]
[394739109,1763922646980,-683.620143,0.00013699,2]